bitfinex/quotes_BTCUSD_20220303
["timestamp","ask_amount","ask_price","bid_price","bid_amount"]
[1646303164130,0.60228555,43232.0,43231.0,0.00305734]
[1646303164333,0.71367555,43232.0,43231.0,0.00305734]
[1646303164527,0.71367555,43232.0,43231.0,0.00095205]
[1646303165232,0.71167555,43232.0,43231.0,0.00095205]
[1646303165428,0.70028555,43232.0,43231.0,0.00095205]
[1646303167982,0.70328555,43232.0,43231.0,0.00095205]
[1646303169085,0.70028555,43232.0,43231.0,0.00095205]
[1646303170986,0.64241055,43232.0,43231.0,0.00095205]
[1646303173125,0.70028955,43232.0,43231.0,0.00095205]
[1646303173729,0.89217534,43232.0,43231.0,0.00095205]
[1646303173929,0.83429634,43232.0,43231.0,0.00095205]
[1646303174132,0.64241055,43232.0,43231.0,0.00095205]
[1646303174328,0.83429634,43232.0,43231.0,0.00095205]
[1646303174729,0.64241055,43232.0,43231.0,0.00095205]
[1646303175784,0.28712855,43232.0,43231.0,0.00095205]
[1646303175985,0.64241055,43232.0,43231.0,0.00095205]
[1646303176185,0.83429634,43232.0,43231.0,0.00095205]
[1646303177387,0.29188579,43232.0,43231.0,0.00095205]
[1646303177586,0.64716779,43232.0,43231.0,0.00095205]
[1646303177987,0.29188579,43232.0,43231.0,0.00095205]
[1646303178191,0.1,43232.0,43231.0,0.00095205]
[1646303178621,0.25969479,43232.0,43231.0,0.00095205]
[1646303178821,0.455282,43232.0,43231.0,0.00095205]
[1646303179221,0.1,43232.0,43231.0,0.00095205]
[1646303179623,0.1,43233.0,43231.0,0.00095205]
[1646303179824,0.355282,43232.0,43231.0,0.00095205]
[1646303180024,0.1,43233.0,43231.0,0.00095205]
[1646303180227,0.23985724,43233.0,43231.0,0.00095205]
[1646303180429,0.28783046,43235.0,43231.0,0.00095205]
[1646303180430,0.19191722,43232.0,43231.0,0.00095205]
[1646303180632,0.23985724,43235.0,43231.0,0.00095205]
[1646303180633,0.19191722,43233.0,43231.0,0.00095205]
[1646303181427,0.19191722,43234.0,43231.0,0.00095205]
[1646303183389,0.19183141,43234.0,43231.0,0.00095205]
[1646303184186,0.07051855,43232.0,43231.0,0.00095205]
[1646303184486,0.19183141,43234.0,43231.0,0.00095205]
[1646303186525,0.057864,43235.0,43233.0,0.17629319]
[1646303187926,0.058864,43235.0,43233.0,0.17629319]
[1646303188127,0.001,43235.0,43232.0,0.00013885]
[1646303188327,0.20981852,43235.0,43232.0,0.00013885]
[1646303188728,0.23987646,43234.0,43231.0,0.00095205]
[1646303188927,0.23987646,43234.0,43231.0,0.0010909]
[1646303189129,0.29774446,43234.0,43231.0,0.0010909]
[1646303189993,0.29774446,43234.0,43231.0,0.00095205]
[1646303190194,0.057868,43234.0,43231.0,0.00095205]
[1646303190691,0.23987646,43234.0,43225.0,0.3148726]
[1646303190896,0.23987646,43234.0,43221.0,0.3148726]
[1646303191090,0.23987646,43234.0,43221.0,0.3380126]
[1646303191291,0.24087646,43235.0,43221.0,0.57844562]
[1646303191492,0.24087646,43235.0,43222.0,0.24043302]
[1646303192292,0.29783858,43235.0,43225.0,0.21647096]
[1646303192691,0.46428034,43235.0,43225.0,0.21647096]
[1646303192890,0.29783858,43235.0,43225.0,0.21647096]
[1646303193293,0.19186673,43233.0,43225.0,0.21647096]
[1646303193494,0.24973373,43233.0,43225.0,0.53134356]
[1646303194344,0.19186673,43233.0,43225.0,0.53134356]
[1646303194949,0.19186673,43233.0,43227.0,0.00013886]
[1646303195944,0.19186673,43233.0,43225.0,0.72370105]
[1646303196145,0.19186673,43233.0,43228.0,0.00014954]
[1646303197244,0.19186673,43233.0,43225.0,0.72370105]
[1646303197476,0.19186673,43233.0,43228.0,0.00014954]
[1646303198478,0.19186673,43234.0,43226.0,0.19235749]
[1646303198678,0.19186673,43234.0,43228.0,0.00014954]
[1646303198878,0.19186673,43233.0,43228.0,0.00014954]
[1646303199679,0.19186673,43233.0,43225.0,0.72370105]
[1646303199880,0.19186673,43233.0,43228.0,0.00013611]
[1646303200880,0.19186673,43233.0,43226.0,0.19235749]
[1646303201133,0.19186673,43233.0,43228.0,0.00013611]
[1646303201935,0.19186673,43233.0,43225.0,0.72370105]
[1646303202135,0.19186673,43233.0,43228.0,0.00013611]
[1646303202738,0.17186673,43233.0,43228.0,0.00013611]
[1646303202938,0.16686673,43233.0,43228.0,0.00013611]
[1646303203134,0.16686673,43233.0,43226.0,0.19235749]
[1646303203337,0.16686673,43233.0,43228.0,0.00013913]
[1646303204339,0.16686673,43233.0,43226.0,0.19235749]
[1646303204538,0.16686673,43233.0,43228.0,0.00013913]
[1646303205390,0.23987646,43234.0,43228.0,0.00013913]
[1646303205688,0.06420449,43235.0,43223.0,0.28673302]
[1646303205689,0.47915704,43235.0,43223.0,0.28673302]
[1646303205889,0.30408095,43235.0,43228.0,0.00013913]
[1646303206887,0.30408095,43235.0,43223.0,0.24043302]
[1646303207188,0.30408095,43235.0,43228.0,0.00013845]
[1646303207987,0.30408095,43235.0,43225.0,0.31350168]
[1646303208192,0.30408095,43235.0,43228.0,0.00013845]
[1646303209239,0.30408095,43235.0,43225.0,0.31350168]
[1646303209436,0.23987646,43235.0,43228.0,0.00013845]
[1646303210440,0.23987646,43235.0,43228.0,0.1881953]
[1646303210639,0.23987646,43235.0,43228.0,0.1883339]
[1646303211440,0.44320545,43235.0,43228.0,0.1883339]
[1646303211642,0.44320545,43235.0,43228.0,0.1881953]
[1646303211840,0.44320545,43235.0,43228.0,0.1883339]
[1646303212689,0.23987646,43235.0,43229.0,0.31350168]
[1646303212889,0.19203352,43233.0,43229.0,0.31350168]
[1646303214500,0.19203352,43233.0,43230.0,0.0463]
[1646303214691,0.19203352,43236.0,43230.0,0.0463]
[1646303214890,0.15399429,43239.0,43230.0,0.23868488]
[1646303214891,0.19203352,43237.0,43230.0,0.23868488]
[1646303215191,0.19203352,43237.0,43231.0,0.19238488]
[1646303215391,0.19203352,43237.0,43235.0,0.18789073]
[1646303215592,0.19203352,43239.0,43236.0,0.0463]
[1646303216432,0.19203352,43240.0,43236.0,0.0463]
[1646303216832,0.19203352,43239.0,43236.0,0.0463]
[1646303217235,0.45183577,43239.0,43236.0,0.0463]
[1646303219234,0.19203352,43240.0,43236.0,0.0463]
[1646303219884,0.19203352,43239.0,43236.0,0.0463]
[1646303220288,0.19203352,43239.0,43236.0,0.0513]
[1646303220487,0.23987646,43242.0,43236.0,0.0513]
[1646303220488,0.19203352,43240.0,43236.0,0.0513]
[1646303220688,0.19203352,43239.0,43236.0,0.03465116]
[1646303221096,0.19203352,43238.0,43236.0,0.03465116]
[1646303221288,0.18180557,43240.0,43236.0,0.03465116]
[1646303221289,0.42741845,43239.0,43236.0,0.03465116]
[1646303221489,0.19203352,43239.0,43236.0,0.03465116]
[1646303221793,0.19203352,43239.0,43236.0,0.02965116]
[1646303222392,0.19203352,43238.0,43236.0,0.03465116]
[1646303223739,0.19203352,43238.0,43236.0,0.02965116]
[1646303224138,0.15399429,43244.0,43236.0,0.21456756]
[1646303224139,0.19203352,43239.0,43236.0,0.21456756]
[1646303224339,0.19203352,43239.0,43237.0,0.31210414]
[1646303224536,0.19203352,43240.0,43237.0,0.35840414]
[1646303224935,0.19203352,43240.0,43237.0,0.0463]
[1646303225138,0.18974409,43240.0,43237.0,0.0463]
[1646303225739,0.23987646,43242.0,43237.0,0.0463]
[1646303225941,0.23987646,43241.0,43237.0,0.0463]
[1646303226942,0.23987646,43241.0,43233.0,0.31210414]
[1646303226943,0.23987646,43242.0,43233.0,0.31210414]
[1646303227142,0.05864319,43241.0,43233.0,0.31210414]
[1646303227780,0.23987646,43242.0,43233.0,0.31210414]
[1646303230781,0.23987646,43242.0,43233.0,0.35840414]
[1646303230983,0.23987646,43243.0,43234.0,0.17097748]
[1646303231238,0.23987646,43244.0,43235.0,0.0463]
[1646303231436,0.23987646,43244.0,43236.0,0.31210414]
[1646303231836,0.23987646,43244.0,43237.0,0.0463]
[1646303233038,0.15399429,43246.0,43237.0,0.0463]
[1646303233039,0.23987646,43243.0,43237.0,0.0463]
[1646303233439,0.23987646,43244.0,43237.0,0.0463]
[1646303235117,0.19190429,43240.0,43237.0,0.0463]
[1646303235315,0.19190429,43240.0,43234.0,0.16919748]
[1646303235715,0.19190429,43240.0,43233.0,0.1]
[1646303235918,0.19190429,43240.0,43233.0,0.41100936]
[1646303236716,0.19190429,43240.0,43233.0,0.1]
[1646303237116,0.19190429,43240.0,43232.0,0.2013]
[1646303237517,0.19190429,43240.0,43233.0,0.31100936]
[1646303237919,0.19190429,43240.0,43232.0,0.2013]
[1646303238119,0.19190429,43240.0,43233.0,0.31100936]
[1646303238737,0.19190429,43239.0,43233.0,0.31100936]
[1646303239134,0.19190429,43239.0,43232.0,0.2013]
[1646303239333,0.19190429,43238.0,43232.0,0.155]
[1646303239730,0.20743434,43237.0,43232.0,0.155]
[1646303239932,0.19190429,43238.0,43232.0,0.155]
[1646303240332,0.19190429,43238.0,43232.0,0.15468928]
[1646303241033,0.37782783,43238.0,43232.0,0.15468928]
[1646303241230,0.19190429,43238.0,43232.0,0.15468928]
[1646303245183,0.19190429,43237.0,43232.0,0.15468928]
[1646303248833,0.19305013,43237.0,43232.0,0.15468928]
[1646303250001,0.19190429,43236.0,43232.0,0.15468928]
[1646303250391,0.19190429,43236.0,43232.0,0.16168928]
[1646303250593,0.19190429,43236.0,43232.0,0.06507454]
[1646303250991,0.19190429,43236.0,43232.0,0.06007454]
[1646303251192,0.19190429,43236.0,43232.0,0.04807454]
[1646303252195,0.19190429,43236.0,43232.0,0.05507454]
[1646303253653,0.19190429,43236.0,43224.0,0.23606]
[1646303253654,0.5502984,43235.0,43224.0,0.42840053]
[1646303253953,0.5502984,43235.0,43224.0,0.2245]
[1646303253954,0.16347857,43227.0,43224.0,0.2245]
[1646303254145,0.25249289,43222.0,43221.0,0.19234053]
[1646303254344,0.16347857,43227.0,43220.0,0.19234053]
[1646303254745,0.16347857,43227.0,43219.0,0.19234053]
[1646303254944,0.16347857,43227.0,43219.0,0.18734053]
[1646303255147,0.16347857,43227.0,43216.0,0.40356843]
[1646303255347,0.31042194,43228.0,43216.0,0.40356843]
[1646303255944,0.23308034,43223.0,43216.0,0.40356843]
[1646303256144,0.19186912,43229.0,43216.0,0.40356843]
[1646303256346,0.18962145,43227.0,43216.0,0.40356843]
[1646303256544,0.19186912,43229.0,43217.0,0.1]
[1646303256745,0.5502984,43232.0,43217.0,0.1]
[1646303257144,0.25510049,43224.0,43217.0,0.1]
[1646303257383,0.5502984,43232.0,43217.0,0.1]
[1646303257582,0.5502984,43232.0,43222.0,0.00016013]
[1646303257782,0.16557671,43229.0,43222.0,0.00016013]
[1646303258585,0.057865,43231.0,43217.0,0.1]
[1646303258786,0.057865,43231.0,43223.0,0.00016013]
[1646303258984,0.00128729,43228.0,43223.0,0.00016013]
[1646303259586,0.17514907,43227.0,43223.0,0.00016013]
[1646303259787,0.17514907,43227.0,43216.0,0.26313541]
[1646303259988,0.17514907,43227.0,43223.0,0.00016013]
[1646303260690,0.00128729,43228.0,43223.0,0.00016013]
[1646303260886,0.00128729,43228.0,43216.0,0.26313541]
[1646303261135,0.00128729,43228.0,43223.0,0.00016013]
[1646303262136,0.21310808,43227.0,43216.0,0.16313541]
[1646303262436,0.00128729,43228.0,43223.0,0.00015248]
[1646303263238,0.00128729,43228.0,43216.0,0.16313541]
[1646303263439,0.00128729,43228.0,43223.0,0.00015248]
[1646303263635,0.16684004,43225.0,43223.0,0.00015248]
[1646303264436,0.16684004,43225.0,43216.0,0.16313541]
[1646303264635,0.16684004,43225.0,43222.0,0.00015249]
[1646303265107,0.47726198,43225.0,43222.0,0.00015249]
[1646303265291,0.10192546,43223.0,43222.0,0.00015249]
[1646303265493,0.4123474,43223.0,43222.0,0.00015249]
[1646303265692,0.60419773,43223.0,43213.0,0.01156]
[1646303265894,0.19185033,43222.0,43213.0,0.01156]
[1646303266497,0.19185033,43221.0,43213.0,0.01156]
[1646303266691,0.31042194,43220.0,43211.0,0.01]
[1646303267498,0.10192546,43219.0,43211.0,0.01]
[1646303268397,0.25094034,43212.0,43211.0,0.01]
[1646303269432,0.46319106,43212.0,43211.0,0.01]
[1646303269632,0.25094034,43212.0,43211.0,0.01]
[1646303270033,0.10192546,43216.0,43211.0,0.01]
[1646303270635,0.10192546,43216.0,43211.0,0.01016003]
[1646303271034,0.24749379,43215.0,43211.0,0.01016003]
[1646303271231,0.18608124,43212.0,43211.0,0.01016003]
[1646303271733,0.24749379,43215.0,43211.0,0.01]
[1646303272783,0.45935275,43215.0,43211.0,0.01]
[1646303272978,0.24749379,43215.0,43211.0,0.01]
[1646303273179,0.24749379,43215.0,43211.0,0.01016003]
[1646303274078,0.1683671,43213.0,43211.0,0.01]
[1646303274277,0.1683671,43213.0,43211.0,0.01015686]
[1646303274478,0.24749379,43215.0,43211.0,0.01015686]
[1646303275279,0.24749379,43215.0,43211.0,0.01]
[1646303275479,0.18640486,43213.0,43211.0,0.01015686]
[1646303275879,0.24749379,43215.0,43211.0,0.01015686]
[1646303276534,0.24749379,43215.0,43211.0,0.01]
[1646303276736,0.24749379,43215.0,43211.0,0.01015686]
[1646303277634,0.24749379,43215.0,43211.0,0.01]
[1646303277837,0.24749379,43215.0,43211.0,0.01013539]
[1646303278037,0.24749379,43215.0,43211.0,0.2116728]
[1646303278238,0.19289971,43213.0,43211.0,0.2116728]
[1646303278437,0.24749379,43215.0,43211.0,0.2116728]
[1646303278844,0.24749379,43215.0,43211.0,0.21153741]
[1646303279035,0.0016367,43216.0,43211.0,0.2116728]
[1646303279446,0.00195943,43213.0,43212.0,0.0463]
[1646303279637,0.00195943,43213.0,43212.0,0.3503249]
[1646303279898,0.00195943,43213.0,43212.0,0.44972779]
[1646303280299,0.00195943,43213.0,43212.0,0.2531271]
[1646303280701,0.00195943,43213.0,43212.0,0.20664712]
[1646303281600,0.00195943,43213.0,43212.0,0.20164712]
[1646303283402,0.00195943,43213.0,43212.0,0.24794712]
[1646303284037,0.22835104,43220.0,43212.0,0.24794712]
[1646303284235,0.22835104,43220.0,43212.0,0.14612002]
[1646303284633,0.22835104,43220.0,43212.0,0.0463]
[1646303284833,0.22835104,43220.0,43212.0,0.1463]
[1646303285032,0.22835104,43220.0,43214.0,0.00013774]
[1646303285234,0.00211197,43221.0,43215.0,0.0463]
[1646303285836,0.00211197,43221.0,43214.0,0.00013774]
[1646303286037,0.10192546,43217.0,43214.0,0.00013774]
[1646303286235,0.10192546,43217.0,43211.0,0.01]
[1646303286438,0.00211197,43221.0,43216.0,0.00013773]
[1646303286439,0.01139,43220.0,43216.0,0.00013773]
[1646303286635,0.10192546,43217.0,43216.0,6.993e-05]
[1646303287235,0.38785751,43217.0,43214.0,0.005]
[1646303287681,0.38785751,43217.0,43211.0,0.01]
[1646303287881,0.10192546,43214.0,43211.0,0.01]
[1646303288482,0.10192546,43214.0,43211.0,0.015]
[1646303288884,0.30933554,43213.0,43211.0,0.015]
[1646303289088,0.10192546,43214.0,43211.0,0.015]
[1646303289682,0.10192546,43214.0,43211.0,0.01]
[1646303290484,0.10192546,43214.0,43211.0,0.015]
[1646303291651,0.10192546,43214.0,43211.0,0.01]
[1646303292544,0.10192546,43214.0,43211.0,0.017]
[1646303293748,0.10192546,43214.0,43211.0,0.01]
[1646303294144,0.10351775,43214.0,43211.0,0.01]
[1646303295900,0.00159229,43214.0,43211.0,0.01]
[1646303300543,0.00159229,43214.0,43211.0,0.016]
[1646303301743,0.00159229,43214.0,43211.0,0.01]
[1646303302254,0.00159229,43214.0,43212.0,0.0463]
[1646303302486,0.00159229,43214.0,43213.0,0.30933554]
[1646303302690,0.00159229,43214.0,43213.0,0.17950261]
[1646303303689,0.00159229,43214.0,43213.0,0.17522213]
[1646303303887,0.00159229,43214.0,43213.0,0.38455767]
[1646303304088,0.00159229,43214.0,43213.0,0.40769767]
[1646303304390,0.2117,43230.0,43223.0,0.06809945]
[1646303304592,0.23987646,43233.0,43230.0,0.19627292]
[1646303304786,0.23987646,43234.0,43231.0,0.0463]
[1646303304987,0.64869865,43236.0,43231.0,0.0463]
[1646303304988,0.23987646,43233.0,43231.0,0.0463]
[1646303305389,0.28785176,43235.0,43231.0,0.0463]
[1646303305390,0.23987646,43232.0,43231.0,0.0463]
[1646303305688,0.28785176,43234.0,43231.0,0.0463]
[1646303305889,0.18741744,43233.0,43231.0,0.0463]
[1646303306154,0.23959841,43232.0,43231.0,0.0463]
[1646303306755,0.23959841,43232.0,43231.0,0.02641023]
[1646303307653,0.18741744,43233.0,43231.0,0.02641023]
[1646303307855,0.4752692,43233.0,43231.0,0.02641023]
[1646303308052,0.18741744,43233.0,43231.0,0.02641023]
[1646303308255,0.10192546,43234.0,43231.0,0.02641023]
[1646303308456,0.23954993,43232.0,43231.0,0.02941023]
[1646303309257,0.42753767,43232.0,43231.0,0.02941023]
[1646303309756,0.18798774,43232.0,43231.0,0.02641023]
[1646303309994,0.2395355,43232.0,43231.0,0.02641023]
[1646303311996,0.2395355,43232.0,43226.0,0.0463]
[1646303312397,0.10192546,43231.0,43226.0,0.0463]
[1646303313393,0.2395355,43232.0,43226.0,0.0463]
[1646303313651,0.34262985,43233.0,43226.0,0.0463]
[1646303313852,0.10309435,43233.0,43226.0,0.0463]
[1646303314051,0.10309435,43233.0,43227.0,0.30799114]
[1646303314249,0.10309435,43233.0,43226.0,0.0463]
[1646303314250,0.10309435,43233.0,43228.0,0.0463]
[1646303314453,0.10309435,43233.0,43229.0,0.0463]
[1646303315653,0.1915069,43232.0,43229.0,0.0463]
[1646303316056,0.29460125,43233.0,43229.0,0.0463]
[1646303316454,0.29460125,43233.0,43229.0,0.0503]
[1646303317404,0.10309435,43233.0,43229.0,0.0503]
[1646303317798,0.10309435,43233.0,43229.0,0.0463]
[1646303319101,0.29460125,43233.0,43229.0,0.0463]
[1646303319701,0.1915069,43232.0,43229.0,0.0463]
[1646303321002,0.21073762,43231.0,43229.0,0.0463]
[1646303321241,0.1915069,43232.0,43229.0,0.0463]
[1646303322044,0.10309435,43233.0,43224.0,0.35429114]
[1646303322045,0.29460125,43233.0,43224.0,0.35429114]
[1646303322446,0.29460125,43233.0,43229.0,0.005]
[1646303323646,0.18567328,43231.0,43229.0,0.005]
[1646303323845,0.29414645,43233.0,43224.0,0.35429114]
[1646303324447,0.10263955,43233.0,43224.0,0.35429114]
[1646303325098,0.29414645,43233.0,43224.0,0.35429114]
[1646303325401,0.10263955,43233.0,43224.0,0.35429114]
[1646303325597,0.29414645,43233.0,43224.0,0.35429114]
[1646303325798,0.10263955,43233.0,43224.0,0.35429114]
[1646303328400,0.17090751,43230.0,43224.0,0.35429114]
[1646303328649,0.00113832,43231.0,43224.0,0.35429114]
[1646303332389,0.00113832,43231.0,43224.0,0.0463]
[1646303332789,0.00101122,43231.0,43224.0,0.0463]
[1646303333590,0.00101122,43231.0,43224.0,0.35429114]
[1646303333790,0.00101122,43231.0,43224.0,0.0463]
[1646303334294,0.10192546,43233.0,43224.0,0.0463]
[1646303334494,0.10192546,43233.0,43224.0,0.0513]
[1646303335296,0.10192546,43233.0,43224.0,0.35929114]
[1646303335795,0.10192546,43233.0,43224.0,0.0513]
[1646303336454,0.10192546,43233.0,43224.0,0.0463]
[1646303337457,0.10192546,43233.0,43224.0,0.35429114]
[1646303337657,0.10192546,43233.0,43224.0,0.0463]
[1646303338257,0.10192546,43233.0,43224.0,0.35429114]
[1646303339900,0.10192546,43233.0,43224.0,0.34929114]
[1646303340097,0.00129885,43234.0,43224.0,0.44393114]
[1646303340295,0.10192546,43231.0,43224.0,0.44393114]
[1646303340697,0.00129885,43234.0,43224.0,0.44393114]
[1646303341096,0.00129885,43234.0,43231.0,0.16457399]
[1646303342698,0.00129885,43234.0,43231.0,0.16857399]
[1646303343099,0.00129885,43234.0,43231.0,0.004]
[1646303344036,0.00129885,43234.0,43229.0,0.0463]
[1646303344635,0.00129885,43234.0,43231.0,0.005]
[1646303345438,0.24077371,43234.0,43231.0,0.005]
[1646303345638,0.244417,43234.0,43231.0,0.005]
[1646303345839,0.19162879,43232.0,43229.0,0.0463]
[1646303347399,0.19169094,43230.0,43229.0,0.0463]
[1646303347598,0.19169015,43230.0,43229.0,0.0463]
[1646303347798,0.19169102,43230.0,43229.0,0.0463]
[1646303348002,0.23947486,43233.0,43229.0,0.0463]
[1646303348197,0.19169151,43230.0,43229.0,0.0463]
[1646303348399,0.19168757,43230.0,43229.0,0.0463]
[1646303348704,0.24074738,43233.0,43224.0,0.0503]
[1646303348901,0.19169266,43230.0,43225.0,0.30799114]
[1646303349101,0.19170872,43229.0,43226.0,0.0463]
[1646303349300,0.23947486,43232.0,43226.0,0.1463]
[1646303349502,0.19167658,43229.0,43226.0,0.1463]
[1646303349703,0.23947486,43232.0,43226.0,0.1463]
[1646303350102,0.19165732,43229.0,43226.0,0.1463]
[1646303350301,0.23947486,43232.0,43226.0,0.1463]
[1646303350502,0.1916508,43229.0,43226.0,0.1513]
[1646303350701,0.23947486,43232.0,43226.0,0.1513]
[1646303350902,0.23947486,43232.0,43231.0,0.42302126]
[1646303352644,0.28864236,43233.0,43231.0,0.42802126]
[1646303352948,0.28736984,43232.0,43231.0,0.42802126]
[1646303353143,0.10192546,43232.0,43231.0,0.42802126]
[1646303353744,0.10192546,43232.0,43231.0,0.42302126]
[1646303354351,0.83333193,43232.0,43231.0,0.42302126]
[1646303354545,0.60031719,43232.0,43231.0,0.42302126]
[1646303358642,0.60431719,43232.0,43231.0,0.42302126]
[1646303359445,0.60431719,43232.0,43231.0,0.41802126]
[1646303359645,0.70431719,43232.0,43231.0,0.41802126]
[1646303359845,0.71170719,43232.0,43231.0,0.41802126]
[1646303360245,0.70031719,43232.0,43231.0,0.41802126]
[1646303360649,0.70331719,43232.0,43231.0,0.41802126]
[1646303361750,0.70031719,43232.0,43231.0,0.41802126]
[1646303362250,0.74661719,43232.0,43231.0,0.41802126]
[1646303362509,0.74961719,43232.0,43231.0,0.41802126]
[1646303363312,0.80749819,43232.0,43231.0,0.41802126]
[1646303363508,0.95454396,43232.0,43231.0,0.41802126]
[1646303364510,0.95154396,43232.0,43231.0,0.41802126]
[1646303364711,0.95554396,43232.0,43231.0,0.41802126]
[1646303365812,0.95154396,43232.0,43231.0,0.41802126]
[1646303366243,0.80449819,43232.0,43231.0,0.41802126]
[1646303366442,0.89366296,43232.0,43231.0,0.41802126]
[1646303366649,0.74661719,43232.0,43231.0,0.41802126]
[1646303373209,0.70031719,43232.0,43231.0,0.41802126]
[1646303374638,1.00830833,43232.0,43231.0,0.41802126]
[1646303375041,1.1553541,43232.0,43231.0,0.41802126]
[1646303376743,1.1583541,43232.0,43231.0,0.41802126]
[1646303377496,1.2162341,43232.0,43231.0,0.41802126]
[1646303377894,1.2132341,43232.0,43231.0,0.41802126]
[1646303378697,1.2172341,43232.0,43231.0,0.41802126]
[1646303379896,1.2132341,43232.0,43231.0,0.41802126]
[1646303380698,1.2182341,43232.0,43231.0,0.41802126]
[1646303381245,1.2182341,43232.0,43231.0,0.41790995]
[1646303381646,1.2182341,43232.0,43231.0,0.40796706]
[1646303381844,1.2132341,43232.0,43231.0,0.40796706]
[1646303382544,1.2182341,43232.0,43231.0,0.40796706]
[1646303383846,1.2132341,43232.0,43231.0,0.40796706]
[1646303387505,1.1553541,43232.0,43231.0,0.40796706]
[1646303388106,0.84736296,43232.0,43231.0,0.40796706]
[1646303388303,0.84236296,43232.0,43231.0,0.40796706]
[1646303388504,0.69531719,43232.0,43231.0,0.40796706]
[1646303389344,0.88753231,43232.0,43231.0,0.40796706]
[1646303389544,0.70705681,43232.0,43231.0,0.40796706]
[1646303389745,0.43226408,43232.0,43231.0,0.40296706]
[1646303390146,0.09692546,43232.0,43231.0,0.40296706]
[1646303390345,0.3843682,43232.0,43231.0,0.40296706]
[1646303390545,0.28744274,43232.0,43231.0,0.40296706]
[1646303391948,0.30144274,43232.0,43231.0,0.40296706]
[1646303392248,0.3983682,43232.0,43231.0,0.40296706]
[1646303392508,0.30144274,43232.0,43231.0,0.40296706]
[1646303392707,0.014,43232.0,43231.0,0.40296706]
[1646303397141,0.01388904,43232.0,43231.0,0.40296706]
[1646303397342,0.30133178,43232.0,43231.0,0.40296706]
[1646303400805,0.01388904,43232.0,43231.0,0.40296706]
[1646303404156,0.25357166,43232.0,43231.0,0.40296706]
[1646303406062,0.01388904,43232.0,43231.0,0.40296706]
[1646303406464,0.01388904,43232.0,43231.0,0.7803982]
[1646303406965,0.19173215,43234.0,43233.0,0.01501313]
[1646303407159,0.19173215,43235.0,43233.0,0.36790669]
[1646303407402,0.23966519,43237.0,43234.0,0.30659356]
[1646303407805,0.23966519,43236.0,43233.0,0.01501313]
[1646303408009,0.23966519,43235.0,43234.0,0.0463]
[1646303408203,0.28744274,43238.0,43234.0,0.0463]
[1646303408204,0.23966519,43236.0,43234.0,0.0463]
[1646303408603,0.23966519,43235.0,43234.0,0.0463]
[1646303409004,0.23966519,43236.0,43234.0,0.0463]
[1646303409404,0.23966519,43235.0,43234.0,0.0463]
[1646303410308,0.23966519,43236.0,43234.0,0.0463]
[1646303410605,0.23966519,43236.0,43234.0,0.0503]
[1646303410802,0.28744274,43238.0,43234.0,0.0503]
[1646303411957,0.28744274,43238.0,43234.0,0.0463]
[1646303412757,0.28744274,43238.0,43234.0,0.03900378]
[1646303413159,0.28694389,43238.0,43234.0,0.03900378]
[1646303413957,0.00136543,43236.0,43234.0,0.03900378]
[1646303414560,0.00136543,43236.0,43234.0,0.03600378]
[1646303414896,0.00136543,43236.0,43234.0,0.03900378]
[1646303415903,0.00136543,43236.0,43234.0,0.03600378]
[1646303416696,0.00136543,43236.0,43234.0,0.03900378]
[1646303417397,0.00136543,43236.0,43235.0,0.30659356]
[1646303417798,0.00136543,43236.0,43234.0,0.03900378]
[1646303418646,0.00136543,43236.0,43234.0,0.03600378]
[1646303419348,0.00136543,43236.0,43235.0,0.08131528]
[1646303419551,0.00136543,43236.0,43235.0,0.15075528]
[1646303420750,0.00136543,43236.0,43235.0,0.13061528]
[1646303421351,0.19280417,43236.0,43235.0,0.13061528]
[1646303422253,0.00136543,43236.0,43235.0,0.13061528]
[1646303422516,0.19280417,43236.0,43235.0,0.12761528]
[1646303422716,0.00136543,43236.0,43235.0,0.13061528]
[1646303423521,0.19280417,43236.0,43235.0,0.13061528]
[1646303425132,0.19280417,43236.0,43235.0,0.08431528]
[1646303425919,0.00136543,43236.0,43235.0,0.08131528]
[1646303429756,0.00080974,43236.0,43235.0,0.41104884]
[1646303430011,0.00080974,43236.0,43235.0,0.45734884]
[1646303430410,0.00080974,43236.0,43235.0,0.49454953]
[1646303433011,0.00080974,43236.0,43235.0,0.43420884]
[1646303433210,0.00080974,43236.0,43235.0,0.12761528]
[1646303433652,0.00080974,43236.0,43235.0,0.18545218]
[1646303433852,0.00116064,43236.0,43235.0,0.18545218]
[1646303436355,0.00116064,43236.0,43235.0,0.18544817]
[1646303436763,0.00116064,43236.0,43235.0,0.18944817]
[1646303437917,0.00116064,43236.0,43235.0,0.18544817]
[1646303438721,0.00116064,43236.0,43235.0,0.18944817]
[1646303439919,0.00116064,43236.0,43235.0,0.18545285]
[1646303440721,0.00116064,43236.0,43235.0,0.18945285]
[1646303441548,0.23929843,43239.0,43236.0,0.00166054]
[1646303441755,0.01193674,43247.0,43236.0,0.04796054]
[1646303441756,0.23929843,43240.0,43236.0,0.04796054]
[1646303442148,0.23929843,43240.0,43239.0,0.04065764]
[1646303442347,0.23929843,43241.0,43239.0,0.06956994]
[1646303442548,0.23929843,43241.0,43239.0,0.28549413]
[1646303442764,0.23429843,43241.0,43239.0,0.28849413]
[1646303443248,0.28714384,43242.0,43239.0,0.28849413]
[1646303444149,0.28714384,43242.0,43239.0,0.28549413]
[1646303446003,0.21038224,43241.0,43239.0,0.28549413]
[1646303446201,0.28714384,43242.0,43239.0,0.06956994]
[1646303447104,0.28714384,43242.0,43239.0,0.04065764]
[1646303447304,0.28714384,43242.0,43237.0,0.15492603]
[1646303447501,0.28714384,43242.0,43240.0,0.06956994]
[1646303448302,0.50513475,43242.0,43240.0,0.06956994]
[1646303450159,0.28714384,43241.0,43240.0,0.06956994]
[1646303455008,0.40208191,43242.0,43240.0,0.06956994]
[1646303455228,0.36908211,43242.0,43240.0,0.0289123]
[1646303455403,0.36908211,43242.0,43236.0,0.00166054]
[1646303455404,0.50258198,43241.0,43236.0,0.00166054]
[1646303455602,0.28745589,43237.0,43236.0,0.00166054]
[1646303455803,0.33536521,43239.0,43236.0,0.00166054]
[1646303458646,0.33536521,43239.0,43236.0,0.00666054]
[1646303458848,0.28744907,43237.0,43236.0,0.00666054]
[1646303459916,0.28744907,43237.0,43236.0,0.00166054]
[1646303460517,0.10325131,43240.0,43236.0,0.00166054]
[1646303460518,0.33536521,43238.0,43236.0,0.04231818]
[1646303461719,0.86293027,43237.0,43236.0,0.04231818]
[1646303461917,0.6225277,43237.0,43236.0,0.04231818]
[1646303462719,0.6803987,43237.0,43236.0,0.04231818]
[1646303462920,0.6833987,43237.0,43236.0,0.04231818]
[1646303463958,0.98512601,43237.0,43236.0,0.04231818]
[1646303464160,0.63823401,43237.0,43236.0,0.04231818]
[1646303464359,0.99351601,43237.0,43236.0,0.04231818]
[1646303464563,1.09351601,43237.0,43236.0,0.04222536]
[1646303464761,0.74123401,43237.0,43236.0,0.04222536]